[Event "Sardinia World Festival-A 2024"]
[Site "Orosei"]
[Date "2024.04.28"]
[Round "2.24"]
[White "Girel, Joseph"]
[Black "Papadiamandis, Elliot"]
[Result "1-0"]
[ECO "B22"]
[WhiteElo "2479"]
[BlackElo "2312"]
[Annotator "TA"]
[PlyCount "127"]
[EventDate "2024.04.26"]
[EventType "swiss"]
[EventCountry "ITA"]
[SourceTitle "playchess.com"]
[Source "ChessBase"]
[SourceQuality "1"]
[TimeControl "40/5400+30:1800+30"]

{[%evp 32,127,-5,-14,-5,-12,34,27,25,36,38,1,0,5,37,32,131,118,117,76,89,21,46,41,73,10,260,272,286,287,287,285,290,287,404,110,116,106,103,101,114,114,134,118,118,118,119,119,114,118,118,118,118,118,118,111,119,125,152,152,152,152,144,130,161,146,190,77,77,48,51,49,121,60,370,347,367,314,360,360,363,358,452,443,536,544,514,457,531,532,469,430,902,937,564,787,1551,1532]} 1. e4 {[%emt 0:01:35]} c5 {[%emt 0:00:40]} 2. c3 {[%emt 0:00:55]} Nf6 {[%emt 0:01:04]} 3. e5 {[%emt 0:00:18]} Nd5 {[%emt 0:00:08]} 4. Nf3 {[%emt 0:00:13]} Nc6 {[%emt 0:03:30]} 5. Bc4 {[%emt 0:00:21]} Nb6 {[%emt 0:01:23]} 6. Bb3 {[%emt 0:00:09]} c4 {[%emt 0:00:57]} 7. Bc2 {[%emt 0:00:22]} d6 {[%emt 0:01:02]} 8. exd6 {[%emt 0:00:20]} Qxd6 {[%emt 0:00:26]} 9. O-O {[%emt 0:00:31]} g6 {[%emt 0:12:30] B22: Sicilian: 2 c3.} 10. a4 {[%emt 0:08:19]} Bg7 {[%emt 0:05:02]} 11. a5 {[%emt 0:03:11]} Nd7 {[%emt 0:26:43]} 12. d3 $146 {[%emt 0:12:55]} ({Predecessor:} 12. a6 bxa6 13. Na3 Nb6 14. Qe2 Be6 15. Ng5 Bd5 16. d3 cxd3 17. Bxd3 O-O 18. Ne4 {0-1 Sanal,V (2572)-Georgiev,K (2589) Titled Arena Apr 3rd blitz 2021}) 12... cxd3 {[%emt 0:01:23]} 13. Bxd3 {[%emt 0:00:32]} O-O {[%emt 0:03:59]} 14. Be3 {[%emt 0:02:03]} Nde5 {[%emt 0:08:18]} 15. Be2 {[%emt 0:02:50]} Qc7 {[%emt 0:01:19]} 16. Na3 {[%emt 0:11:28]} Nxf3+ {[%emt 0:04:39]} 17. Bxf3 {[%emt 0:00:26]} Qxa5 {[%emt 0:01:10]} 18. Nc4 {[%emt 0:00:45]} Qf5 {[%emt 0:03:01]} (18... Qb5 $11 19. Nb6 Rb8 20. Nxc8 Rfxc8) 19. Nb6 $14 {[%emt 0:07:50]} Rb8 {[%emt 0:00:26]} 20. Nd5 {[%emt 0:01:26]} Qd7 {[%emt 0:05:53]} 21. Qa4 {[%emt 0:04:37]} e6 {[%emt 0:03:56]} 22. Nb4 {[%emt 0:03:34]} Nxb4 {[%emt 0:02:55]} 23. Qxa7 {[%emt 0:04:33]} Qc7 {[%emt 0:06:23]} (23... Na6 $6 24. Rxa6 bxa6 25. Qxb8 $16) ({Black should try} 23... Nc2 $14 24. Rad1 (24. Qxb8 Nxa1 25. Rxa1 Qb5 $11) 24... Qb5 (24... Qc7 25. Bc5 $16) 25. Qxb8 Nxe3 26. fxe3 Qxb2) 24. cxb4 $16 {[%emt 0:08:30]} Bd7 {[%emt 0:00:09]} 25. Rac1 {[%emt 0:01:21]} Qe5 {[%emt 0:00:39]} 26. Bc5 {[%emt 0:01:12]} (26. Bxb7 $16 {Hoping for Rfd1.} Qf5 27. Bc5) 26... Rfc8 {[%emt 0:03:20]} 27. Bxb7 {[%emt 0:01:34]} (27. Rfd1 $5 Be8 28. Bxb7 $16) 27... Re8 $1 {[%emt 0:00:53]} 28. Rcd1 {[%emt 0:02:34]} (28. Rfd1 $1 $16 {[%cal Rd1d7]} Qxb2 29. Be4) 28... Bb5 $2 {[%emt 0:00:19]} (28... Qc7 $1 $11 29. Bf3 Qxa7 30. Bxa7 Ba4 31. Bxb8 Bxd1 32. Rxd1 Rxb8) 29. Bd6 $18 {[%emt 0:04:59]} Qxb2 {[%emt 0:01:19]} 30. Bxb8 {[%emt 0:00:47]} Bxf1 {[%emt 0:00:02]} 31. Kxf1 {[%emt 0:03:38]} (31. Rxf1 Bd4 32. Qa8 Qxb4 $17) 31... Qxb4 {[%emt 0:00:58]} 32. Bg3 {[%emt 0:00:56]} f5 {[%emt 0:00:17]} (32... Qb5+ {was called for.} 33. Kg1 h5) 33. Bf3 $2 {[%emt 0:02:07]} (33. Qa6 $18) 33... f4 $16 {[%emt 0:00:55]} 34. Qd7 {[%emt 0:00:26]} Re7 {[%emt 0:00:30]} 35. Qc8+ {[%emt 0:05:16]} Bf8 {[%emt 0:01:13]} 36. Bh4 {[%emt 0:01:43]} g5 {[%emt 0:00:02]} 37. Rd8 {[%emt 0:00:28]} (37. Bxg5 $6 Qb5+ 38. Kg1 Qxg5 $11) 37... Qb5+ {[%emt 0:01:04]} 38. Be2 {[%emt 0:01:50]} Qb1+ {[%emt 0:00:07]} 39. Bd1 {[%emt 0:01:04]} Re8 {[%emt 0:00:04]} 40. Bxg5 {[%emt 0:01:16]} (40. Rxe8 $2 Qxd1#) 40... Qxd1+ {[%emt 0:00:32]} 41. Rxd1 {[%emt 0:30:08]} Rxc8 {[%emt 0:30:12]} 42. Bxf4 {[%emt 0:00:05]} Kf7 {[%emt 0:00:00]} 43. Rd3 {[%emt 0:00:00]} Rc2 {[%emt 0:00:00]} 44. Rf3 {[%emt 0:00:00]} Bc5 {[%emt 0:00:00]} 45. Be5+ {[%emt 0:00:00]} Kg8 {[%emt 0:00:00]} 46. g4 {[%emt 0:00:00]} Rc4 {[%emt 0:00:00]} 47. h3 {[%emt 0:00:00]} Be7 {[%emt 0:00:00]} 48. Rb3 {[%emt 0:00:00]} Re4 {[%emt 0:00:00]} 49. f4 {[%emt 0:00:00]} (49. Rb7 $18) 49... Bf6 $16 {[%emt 0:00:00]} 50. Bb8 {[%emt 0:00:00]} (50. Bxf6 Rxf4+ 51. Kg2 Rxf6 $11) 50... e5 {[%emt 0:01:11]} 51. f5 {[%emt 0:00:00]} Bh4 {[%emt 0:02:58]} ({Black should play} 51... h5 $1 $14) 52. Rb6 {[%emt 0:00:00]} (52. Rb5 $1 $16) 52... h5 $2 {[%emt 0:00:37][%mdl 8192] [#]} (52... Re3 $1 $14) 53. Rh6 $1 $18 {[%emt 0:00:00]} ({Inferior is} 53. gxh5 Rf4+ 54. Ke2 Rxf5 $11) 53... Rf4+ {[%emt 0:01:56]} 54. Ke2 {[%emt 0:00:00]} Re4+ {[%emt 0:00:51]} 55. Kd3 {[%emt 0:03:52]} Rd4+ {[%emt 0:00:01] [#]} 56. Kc2 $1 {[%emt 0:00:29]} e4 {[%emt 0:00:57]} 57. Rxh5 {[%emt 0:00:51]} (57. gxh5 Rd5 $17) 57... Be1 {[%emt 0:00:34]} 58. Rh8+ {[%emt 0:01:29]} Kf7 {[%emt 0:00:01]} 59. Be5 {[%emt 0:00:30]} Rd2+ {[%emt 0:00:15]} 60. Kb3 {[%emt 0:00:43]} Rd5 {[%emt 0:00:46]} 61. Bf4 {[%emt 0:00:50]} e3 {[%emt 0:00:04]} (61... Rd3+ $142 62. Kc4 Bg3) 62. Kc4 $18 {[%emt 0:00:41]} ({Stronger than} 62. Bxe3 Rd3+ 63. Kc4 Rxe3 $11) 62... Ra5 {[%emt 0:01:24]} 63. Bxe3 {[%emt 0:00:07]} Ra3 {[%emt 0:00:03]} 64. Bd4 {[%emt 0:00:24]} 1-0

[Event "Sardinia World Festival-A 2024"]
[Site "Orosei"]
[Date "2024.04.28"]
[Round "2.25"]
[White "Chyzy, Jakub"]
[Black "Costa, Leonardo"]
[Result "1-0"]
[ECO "C77"]
[WhiteElo "2314"]
[BlackElo "2476"]
[Annotator "TA"]
[PlyCount "77"]
[EventDate "2024.04.26"]
[EventType "swiss"]
[EventCountry "ITA"]
[SourceTitle "playchess.com"]
[Source "ChessBase"]
[SourceQuality "1"]
[TimeControl "40/5400+30:1800+30"]

{[%evp 12,77,16,9,16,18,12,17,24,3,13,0,0,0,0,0,0,0,0,0,0,-26,-12,-14,-14,-15,-17,-30,-29,-21,-23,-36,-12,-60,-37,-71,-42,-94,-102,-121,-107,-108,-97,-83,-83,-142,-109,-116,-58,-183,-6,-8,-8,-25,-65,-44,-66,-48,863,858,833,817,29995,29996,29996,-457,29997,29998]} 1. e4 {[%emt 0:02:46]} e5 {[%emt 0:00:03]} 2. Nf3 {[%emt 0:00:07]} Nc6 {[%emt 0:00:04]} 3. Bb5 {[%emt 0:00:10][%cal Bf1b5,Bb5a4,Ba4b3][%mdl 32]} a6 {[%emt 0:00:05]} 4. Ba4 {[%emt 0:00:04]} Nf6 {[%emt 0:00:04]} 5. Nc3 {[%emt 0:00:24]} b5 {[%emt 0:06:57]} 6. Bb3 {[%emt 0:00:06]} Bc5 {[%emt 0:00:03]} 7. d3 {[%emt 0:09:38]} h6 {[%emt 0:01:51]} 8. Nd5 {[%emt 0:00:52]} d6 {[%emt 0:00:59]} 9. c3 {[%emt 0:01:35]} Rb8 {[%emt 0:14:15] The position is equal.} 10. O-O {[%emt 0:05:22]} O-O {[%emt 0:00:03]} 11. h3 {[%emt 0:04:26]} Ba7 {[%emt 0:07:43]} 12. Be3 {[%emt 0:08:27]} Nxd5 {[%emt 0:07:25]} 13. Bxd5 {[%emt 0:03:10]} Bxe3 {[%emt 0:00:07]} 14. fxe3 {[%emt 0:00:26]} Ne7 {[%emt 0:02:00]} 15. Bb3 {[%emt 0:00:34]} Ng6 {[%emt 0:00:03]} 16. Qe1 {[%emt 0:01:29]} Qe7 {[%emt 0:00:20]} 17. Qg3 {[%emt 0:19:36]} Be6 {[%emt 0:00:13]} 18. Bc2 {[%emt 0:00:14]} c5 {[%emt 0:11:17]} 19. h4 {[%emt 0:09:27]} Rfe8 {[%emt 0:03:43]} 20. Rf2 {[%emt 0:02:10]} Nf8 {[%emt 0:04:10]} 21. d4 {[%emt 0:01:04]} f6 {[%emt 0:01:48]} 22. b3 {[%emt 0:09:46]} (22. Nd2 $11 {feels stronger.}) 22... Kh8 {[%emt 0:02:53]} 23. Raf1 {[%emt 0:01:17]} a5 {[%emt 0:02:58]} 24. Nh2 {[%emt 0:01:42]} (24. Nd2 $15) 24... c4 {[%emt 0:02:55]} 25. d5 {[%emt 0:04:23]} Bd7 {[%emt 0:04:49]} 26. bxc4 {[%emt 0:00:51]} bxc4 {[%emt 0:00:15]} 27. Bd1 {[%emt 0:02:30]} Rec8 {[%emt 0:04:16]} 28. Qf3 {[%emt 0:04:32]} ({Better is} 28. Bh5) 28... Be8 {[%emt 0:03:23]} 29. g4 {[%emt 0:02:08][%cal Og4g5]} Nd7 {[%emt 0:03:41]} (29... Nh7 $17 30. Kh1 a4) 30. Qh3 {[%emt 0:04:09]} (30. Rg2 $15) 30... Rb1 $2 {[%emt 0:01:38]} ({Black should play} 30... Bg6 $19 {[%cal Od7c5] ...Nc5! would now be deadly.} 31. g5 Bxe4) 31. g5 $11 {[%emt 0:00:28]} fxg5 {[%emt 0:01:47]} 32. hxg5 {[%emt 0:00:05]} Qxg5+ {[%emt 0:00:03]} 33. Rg2 {[%emt 0:00:16]} Qe7 {[%emt 0:01:10] And now ...Rcb8 would win.} 34. Ng4 $1 {[%emt 0:00:41][%cal Og4h6] White threatens Nxh6! and mate.} Kh7 {[%emt 0:01:19][%mdl 8192] [#]} (34... h5 $15 35. Nh2 g6) 35. Nxh6 $1 $18 {[%emt 0:02:04][%mdl 512]} gxh6 {[%emt 0:00:54][%cal Bg7h6,Bh6h5][%mdl 32]} 36. Qg4 {[%emt 0:00:56][%csl Gg2][%cal Rg4g8]} h5 {[%emt 0:06:19]} 37. Qg8+ {[%emt 0:00:16]} Kh6 {[%emt 0:00:03] [#]} 38. Qh8+ $1 {[%emt 0:00:07]} Qh7 {[%emt 0:00:05] [#]} 39. Rf6+ $1 {[%emt 0:00:04][%mdl 512] Weighted Error Value: White=0.13 (very precise) /Black=0.38.  Loses game:     	---       	Black=1      Missed win:     	---       	Black=1      Mistake:       	White=4     	Black=1      Inaccurate:     	White=2     	Black=1      OK:         	White=8     	Black=11     Best:        	White=1     	Black=1      Strong:       	White=1     	---        Brilliant:      	White=1     	---} 1-0

[Event "Sardinia World Festival-A 2024"]
[Site "Orosei"]
[Date "2024.04.28"]
[Round "2.26"]
[White "Stoyanov, Tsvetan"]
[Black "Casadio, Niccolo`"]
[Result "1/2-1/2"]
[ECO "A13"]
[WhiteElo "2473"]
[BlackElo "2309"]
[Annotator "TA"]
[PlyCount "63"]
[EventDate "2024.04.26"]
[EventType "swiss"]
[EventCountry "ITA"]
[SourceTitle "playchess.com"]
[Source "ChessBase"]
[SourceQuality "1"]
[TimeControl "40/5400+30:1800+30"]

{[%evp 11,63,11,11,4,12,6,11,9,12,9,30,25,46,33,59,37,59,30,58,19,20,-8,34,20,34,11,35,31,37,37,50,37,63,0,2,-10,-8,-4,0,0,0,0,-4,-4,-4,0,0,-18,0,0,0,-20,0,-8]} 1. Nf3 {[%emt 0:00:03]} Nf6 {[%emt 0:04:46]} 2. c4 {[%emt 0:00:20]} e6 {[%emt 0:00:50]} 3. Nc3 {[%emt 0:00:44]} d5 {[%emt 0:00:07]} 4. e3 {[%emt 0:00:14]} Be7 {[%emt 0:00:39]} 5. b3 {[%emt 0:00:28]} O-O {[%emt 0:00:20]} 6. Bb2 {[%emt 0:00:05]} b6 {[%emt 0:00:55]} 7. cxd5 {[%emt 0:00:51]} Nxd5 {[%emt 0:02:39]} 8. Nxd5 {[%emt 0:00:19]} exd5 {[%emt 0:01:54]} 9. Be2 {[%emt 0:00:43]} c5 {[%emt 0:02:03]} 10. O-O {[%emt 0:00:30]} Be6 {[%emt 0:00:16]} 11. d4 {[%emt 0:03:49]} Nd7 {[%emt 0:05:34]} 12. Rc1 {[%emt 0:04:51]} Qc7 {[%emt 0:05:09]} 13. Qc2 {[%emt 0:10:06]} a5 {[%emt 0:04:01][%cal Oa5a4]} 14. Bb5 {[%emt 0:20:35]} Rfc8 {[%emt 0:03:13][%cal Oa5a4]} 15. Qb1 {[%emt 0:05:14]} Qb7 {[%emt 0:02:51]} 16. h3 {[%emt 0:05:22]} Rc7 {[%emt 0:03:09][%cal Oa5a4]} 17. Bd3 {[%emt 0:17:58]} Nf8 {[%emt 0:03:10]} 18. Rfd1 {[%emt 0:07:18]} Rac8 {[%emt 0:04:02]} 19. dxc5 {[%emt 0:03:09]} bxc5 {[%emt 0:01:01]} 20. Be5 {[%emt 0:00:30]} Rc6 {[%emt 0:00:23]} 21. Bc3 {[%emt 0:05:03]} Qa7 {[%emt 0:03:03]} 22. Ne5 {[%emt 0:01:40] White is more active.} (22. Qb2 $14) 22... Rb6 $11 {[%emt 0:00:40] The position is equal.} 23. Qc2 {[%emt 0:00:42]} Bf6 $1 {[%emt 0:02:59][%cal Od5d4] [#] White must now prevent ...d4!} 24. Nf3 {[%emt 0:01:32]} Bxc3 {[%emt 0:00:21]} 25. Qxc3 {[%emt 0:00:01]} a4 {[%emt 0:00:42]} 26. Bc2 {[%emt 0:00:51]} axb3 {[%emt 0:02:35]} 27. axb3 {[%emt 0:00:01]} h6 {[%emt 0:00:36]} 28. Ne5 {[%emt 0:04:09]} Qb8 {[%emt 0:00:52]} 29. Nd3 {[%emt 0:01:25]} Rbc6 {[%emt 0:11:05][%cal Od5d4]} 30. Ne5 {[%emt 0:01:56]} Rb6 {[%emt 0:00:15]} 31. Nd3 {[%emt 0:00:28]} Rbc6 {[%emt 0:00:05][%cal Od5d4]} 32. Ne5 {[%emt 0:00:55] Weighted Error Value: White=0.12 (very precise) /Black=0.11 (very precise) .  Mistake:       	White=1     	---        Inaccurate:     	White=3     	Black=4      OK:         	White=10    	Black=5      Strong:       	---       	Black=1} 1/2-1/2

[Event "Sardinia World Festival-A 2024"]
[Site "Orosei"]
[Date "2024.04.28"]
[Round "2.27"]
[White "Piscopo, Pierluigi"]
[Black "Agmanov, Zhandos"]
[Result "1/2-1/2"]
[ECO "B92"]
[WhiteElo "2312"]
[BlackElo "2458"]
[Annotator "TA"]
[PlyCount "32"]
[EventDate "2024.04.26"]
[EventType "swiss"]
[EventCountry "ITA"]
[SourceTitle "playchess.com"]
[Source "ChessBase"]
[SourceQuality "1"]
[TimeControl "40/5400+30:1800+30"]

{[%evp 17,32,0,16,8,54,34,51,42,57,63,102,100,103,0,95,0,87]} 1. e4 {[%emt 0:00:04]} c5 {[%emt 0:09:52]} 2. Nf3 {[%emt 0:00:07][%cal Bg1f3,Bf3d4,Bd4b3][%mdl 32]} d6 {[%emt 0:00:05]} 3. d4 {[%emt 0:00:12]} cxd4 {[%emt 0:00:07]} 4. Nxd4 {[%emt 0:00:07]} Nf6 {[%emt 0:00:05]} 5. Nc3 {[%emt 0:00:08]} a6 {[%emt 0:00:01]} 6. Be2 {[%emt 0:00:19]} e5 {[%emt 0:00:34]} 7. Nb3 {[%emt 0:00:18]} Be7 {[%emt 0:00:24]} 8. O-O {[%emt 0:01:15]} O-O {[%emt 0:00:30]} 9. Kh1 {[%emt 0:00:47]} Be6 {[%emt 0:16:11]} 10. f4 {[%emt 0:01:37][%cal Bf2f4,Bf4f5][%mdl 32]} Nbd7 {[%emt 0:09:47]} (10... b5 $11 {feels stronger.}) 11. f5 $14 {[%emt 0:11:06]} Bxb3 {[%emt 0:00:10]} 12. axb3 {[%emt 0:00:07] White is slightly better.} Rc8 {[%emt 0:04:12]} 13. Bf3 {[%emt 0:09:29]} Ne8 {[%emt 0:17:29]} 14. Nd5 {[%emt 0:16:00]} Nef6 {[%emt 0:05:47]} 15. Nc3 {[%emt 0:02:58] White is more active.} Ne8 $1 {[%emt 0:01:14]} 16. Nd5 {[%emt 0:00:33]} Nef6 {[%emt 0:00:04] Weighted Error Value: White=0.39/Black=0.14 (very precise) .  Mistake:       	---       	Black=1      Inaccurate:     	---       	Black=1      OK:         	White=1     	Black=2      Best:        	White=1     	Black=1      Strong:       	---       	Black=1} 1/2-1/2

[Event "Sardinia World Festival-A 2024"]
[Site "Orosei"]
[Date "2024.04.28"]
[Round "2.28"]
[White "Bettalli, Francesco"]
[Black "Royal, Shreyas"]
[Result "1/2-1/2"]
[ECO "C78"]
[WhiteElo "2309"]
[BlackElo "2455"]
[Annotator "TA"]
[PlyCount "59"]
[EventDate "2024.04.26"]
[EventType "swiss"]
[EventCountry "ITA"]
[SourceTitle "playchess.com"]
[Source "ChessBase"]
[SourceQuality "1"]
[TimeControl "40/5400+30:1800+30"]

{[%evp 17,59,29,34,0,0,7,8,9,16,29,3,18,11,22,13,16,17,14,15,0,0,0,0,0,0,0,0,0,12,9,10,27,21,0,0,7,7,8,65,0,0,0,60,0]} 1. e4 {[%emt 0:00:09]} e5 {[%emt 0:00:18]} 2. Nf3 {[%emt 0:00:08]} Nc6 {[%emt 0:00:05]} 3. Bb5 {[%emt 0:00:45]} a6 {[%emt 0:00:10]} 4. Ba4 {[%emt 0:00:04]} Nf6 {[%emt 0:00:06]} 5. O-O {[%emt 0:00:06]} b5 {[%emt 0:00:17]} 6. Bb3 {[%emt 0:00:05]} Bc5 {[%emt 0:00:04]} 7. c3 {[%emt 0:00:23]} d6 {[%emt 0:00:20]} 8. d4 {[%emt 0:00:29][%cal Bd2d4,Bd4d5,Bd5c6,Bc6b7][%mdl 32]} Bb6 {[%emt 0:00:07]} 9. a4 {[%emt 0:00:03]} Rb8 {[%emt 0:00:11]} 10. a5 {[%emt 0:00:15]} Ba7 {[%emt 0:00:06]} (10... Nxa5 $6 11. Rxa5 Bxa5 12. dxe5 Nxe4 13. Qd5 $14) 11. h3 {[%emt 0:00:13]} Bb7 {[%emt 0:00:42]} 12. Be3 {[%emt 0:00:26] Black should prevent d5. The position is equal.} Nxe4 {[%emt 0:02:47]} 13. d5 {[%emt 0:00:45]} Bxe3 {[%emt 0:00:40]} 14. dxc6 {[%emt 0:00:05]} Nxf2 {[%emt 0:01:17]} 15. Qe2 {[%emt 0:00:03]} Nxh3+ {[%emt 0:00:56]} 16. Kh1 {[%emt 0:00:03]} Nf2+ {[%emt 0:00:39]} 17. Rxf2 {[%emt 0:00:04]} Bxf2 {[%emt 0:00:06]} 18. cxb7 {[%emt 0:04:22]} Ba7 {[%emt 0:01:55][%cal Oc7c6] Strongly threatening ...c6!} 19. Bd5 {[%emt 0:00:04]} Qd7 {[%emt 0:03:14]} 20. Nd4 {[%emt 0:00:05] Prevents c6} Qe7 {[%emt 0:03:46]} 21. Bc6+ {[%emt 0:00:06]} Kf8 $1 {[%emt 0:00:18]} 22. Nf3 {[%emt 0:00:03] Wards off Qh4+} d5 {[%emt 0:02:50] White must now prevent ...Qd6.} 23. Qxe5 {[%emt 0:00:06] Threatens to win with Na3.} ({Much weaker is} 23. Bxd5 c6 24. Be4 (24. Bxc6 Qe6 $15) 24... Rxb7 $17) 23... Qxe5 {[%emt 0:00:19]} 24. Nxe5 {[%emt 0:00:03]} Ke7 {[%emt 0:00:11] [#] And now ...Kd6 would win.} 25. Bxb5 $1 {[%emt 0:00:04]} axb5 {[%emt 0:00:36]} 26. a6 {[%emt 0:00:02]} Kd6 {[%emt 0:01:16] Prevents Nc6.} 27. Nxf7+ {[%emt 0:00:05]} Kd7 {[%emt 0:00:39]} (27... Kc6 $11 28. Nxh8 Rxh8) 28. Ne5+ {[%emt 0:01:48][%mdl 1024] White has compensation.} Kd6 $1 {[%emt 0:00:08]} 29. Nf7+ {[%emt 0:00:03] Excellent horsemanship.} Kd7 {[%emt 0:00:04] [#] aiming for ...Rhf8.} 30. Ne5+ {[%emt 0:00:03] An uneventful encounter.   Weighted Error Value: White=0.08 (flawless) /Black=0.05 (flawless) .  Mistake:       	White=1     	Black=1      OK:         	White=10    	Black=9      Best:        	White=3     	Black=4      Strong:       	---       	Black=2} (30. Nxh8 $14 Rxh8 31. b4) 1/2-1/2

[Event "Sardinia World Festival-A 2024"]
[Site "Orosei"]
[Date "2024.04.28"]
[Round "2.29"]
[White "Fromm, Marius"]
[Black "Kalosha, Zhiulien Oleksii"]
[Result "1-0"]
[ECO "C77"]
[WhiteElo "2454"]
[BlackElo "2306"]
[Annotator "RC"]
[PlyCount "193"]
[EventDate "2024.04.26"]
[EventType "swiss"]
[EventCountry "ITA"]
[SourceTitle "playchess.com"]
[Source "ChessBase"]
[SourceQuality "1"]
[TimeControl "40/5400+30:1800+30"]

1. e4 {[%emt 0:00:04]} e5 {[%emt 0:00:17]} 2. Nf3 {[%emt 0:00:08]} Nc6 {[%emt 0:00:13]} 3. Bb5 {[%emt 0:00:05]} a6 {[%emt 0:00:53]} 4. Ba4 {[%emt 0:00:06]} Nf6 {[%emt 0:00:45]} 5. Nc3 {[%emt 0:00:06]} Bc5 {[%emt 0:03:42]} 6. d3 {[%emt 0:00:14]} O-O {[%emt 0:04:36]} 7. Bxc6 {[%emt 0:01:45]} dxc6 {[%emt 0:02:15]} 8. O-O {[%emt 0:00:33]} Re8 {[%emt 0:01:54]} 9. h3 {[%emt 0:00:50]} h6 {[%emt 0:00:49]} 10. Be3 {[%emt 0:01:03]} Bf8 {[%emt 0:01:16]} 11. a4 {[%emt 0:03:05]} c5 {[%emt 0:05:19]} 12. Nd2 {[%emt 0:08:49]} b6 {[%emt 0:05:56]} 13. Nc4 {[%emt 0:02:48]} g5 {[%emt 0:11:33]} 14. h4 {[%emt 0:11:40]} Ng4 {[%emt 0:11:57]} 15. hxg5 {[%emt 0:00:42]} hxg5 {[%emt 0:00:40]} 16. Qf3 {[%emt 0:06:08]} Rb8 {[%emt 0:02:57]} 17. Bd2 {[%emt 0:02:05]} f6 {[%emt 0:09:38]} 18. Nd5 {[%emt 0:06:38]} Bg7 {[%emt 0:02:15]} 19. Nde3 {[%emt 0:09:21]} Nh6 {[%emt 0:00:41]} 20. Rfe1 {[%emt 0:03:38]} Be6 {[%emt 0:01:00]} 21. Qe2 {[%emt 0:05:54]} Qd7 {[%emt 0:01:38]} 22. f3 {[%emt 0:00:08]} Red8 {[%emt 0:02:59]} 23. b3 {[%emt 0:00:59]} Nf7 {[%emt 0:03:38]} 24. Bc3 {[%emt 0:01:56]} Nh8 {[%emt 0:01:32]} 25. g3 {[%emt 0:01:04]} Ng6 {[%emt 0:00:45]} 26. Kg2 {[%emt 0:00:16]} Kf7 {[%emt 0:01:44]} 27. Rh1 {[%emt 0:00:07]} Rh8 {[%emt 0:02:24]} 28. Rxh8 {[%emt 0:00:19]} Rc8 {[%emt 0:21:14]} 29. Rg8 Rxg8 {[%emt 0:00:00]} 30. Rf1 {[%emt 0:34:59]} Rh8 31. Rh1 {[%emt 0:00:00]} Qc8 {[%emt 0:00:00]} 32. Rxh8 {[%emt 0:00:00]} Qxh8 {[%emt 0:00:00]} 33. Nf5 {[%emt 0:00:00]} Ne7 {[%emt 0:00:00]} 34. Nce3 {[%emt 0:00:00]} Qh7 {[%emt 0:00:00]} 35. Nxe7 {[%emt 0:00:00]} Qh3+ {[%emt 0:00:00]} 36. Kf2 {[%emt 0:00:00]} Qh2+ {[%emt 0:00:00]} 37. Ng2 {[%emt 0:00:00]} Kxe7 {[%emt 0:00:00]} 38. Qd1 {[%emt 0:00:00]} g4 {[%emt 0:01:16]} 39. fxg4 {[%emt 0:00:00]} Bh6 {[%emt 0:00:12]} 40. Bd2 {[%emt 0:00:00]} Bxd2 {[%emt 0:00:35]} 41. Qxd2 {[%emt 0:06:44]} Bxg4 {[%emt 0:30:18]} 42. Qc1 {[%emt 0:00:36]} Be6 {[%emt 0:03:10]} 43. Qg1 {[%emt 0:01:12]} Qh6 {[%emt 0:00:00]} 44. Ne3 {[%emt 0:00:00]} Kd6 {[%emt 0:00:00]} 45. Ke2 {[%emt 0:00:00]} Qh5+ {[%emt 0:00:00]} 46. Kd2 {[%emt 0:00:00]} Qh6 {[%emt 0:00:00]} 47. Kc3 {[%emt 0:00:00]} Qg5 {[%emt 0:00:00]} 48. Qf2 {[%emt 0:00:00]} Ke7 {[%emt 0:00:00]} 49. Kb2 {[%emt 0:00:00]} Qh6 {[%emt 0:00:00]} 50. a5 {[%emt 0:00:00]} Qh8 {[%emt 0:00:00]} 51. Nd1 {[%emt 0:00:00]} Qd8 {[%emt 0:00:00]} 52. axb6 {[%emt 0:00:00]} cxb6 {[%emt 0:00:00]} 53. Nc3 {[%emt 0:00:00]} Qd6 {[%emt 0:00:00]} 54. Na4 {[%emt 0:05:13]} Bd7 {[%emt 0:00:00]} 55. Nc3 {[%emt 0:00:05]} Be6 {[%emt 0:00:00]} 56. Kc1 {[%emt 0:01:48]} Qd8 {[%emt 0:00:00]} 57. Qh2 {[%emt 0:00:40]} Qd4 {[%emt 0:00:00]} 58. Kd2 {[%emt 0:00:50]} Bf7 {[%emt 0:00:00]} 59. g4 {[%emt 0:01:37]} b5 {[%emt 0:02:18]} 60. g5 {[%emt 0:01:19]} fxg5 {[%emt 0:01:36]} 61. Qg3 {[%emt 0:00:12]} c4 {[%emt 0:01:58]} 62. Qxg5+ {[%emt 0:00:05]} Ke8 {[%emt 0:00:10]} 63. bxc4 {[%emt 0:04:22]} bxc4 {[%emt 0:00:15]} 64. Qf6 {[%emt 0:00:03]} cxd3 {[%emt 0:00:46]} 65. cxd3 {[%emt 0:00:02]} a5 {[%emt 0:01:36]} 66. Qc6+ {[%emt 0:00:10]} Kf8 {[%emt 0:00:13]} 67. Qa8+ {[%emt 0:00:15]} Kg7 {[%emt 0:00:08]} 68. Qxa5 {[%emt 0:00:08]} Qf2+ {[%emt 0:00:54]} 69. Ne2 {[%emt 0:00:10]} Qh2 {[%emt 0:00:31]} 70. Qc7 {[%emt 0:02:13]} Kg8 {[%emt 0:03:27]} 71. Qd8+ {[%emt 0:02:13]} Kh7 {[%emt 0:00:37]} 72. Qe7 {[%emt 0:00:41]} Kg8 {[%emt 0:00:29]} 73. Qg5+ {[%emt 0:00:18]} Kf8 {[%emt 0:00:11]} 74. Ke3 {[%emt 0:00:41]} Bh5 {[%emt 0:00:52]} 75. Nc3 {[%emt 0:02:04]} Kf7 {[%emt 0:00:53]} 76. Qf5+ {[%emt 0:00:36]} Ke8 {[%emt 0:00:19]} 77. Qf1 {[%emt 0:01:45]} Bg4 {[%emt 0:00:41]} 78. Qf6 {[%emt 0:02:46]} Bh5 {[%emt 0:00:07]} 79. Qf5 {[%emt 0:02:00]} Kd8 {[%emt 0:00:46]} 80. Qf1 {[%emt 0:00:06]} Ke8 {[%emt 0:00:23]} 81. Nd5 {[%emt 0:00:24]} Bf7 {[%emt 0:00:41]} 82. Nf6+ {[%emt 0:10:54]} Ke7 {[%emt 0:00:12]} 83. Ng4 {[%emt 0:00:06]} Qg3+ {[%emt 0:00:14]} 84. Qf3 {[%emt 0:00:21]} Qe1+ {[%emt 0:00:11]} 85. Qe2 {[%emt 0:00:10]} Qg3+ {[%emt 0:01:42]} 86. Kd2 {[%emt 0:00:27]} Bh5 {[%emt 0:00:28]} 87. Ne3 {[%emt 0:00:03]} Qg5 {[%emt 0:00:41]} 88. Qf2 {[%emt 0:00:23]} Bg6 {[%emt 0:00:29]} 89. Kc2 {[%emt 0:00:26]} Ke8 {[%emt 0:00:23]} 90. Nc4 {[%emt 0:00:28]} Qe7 {[%emt 0:00:43]} 91. Qg3 {[%emt 0:00:24]} Qh7 {[%emt 0:00:28]} 92. Qxe5+ {[%emt 0:00:11]} Kf8 {[%emt 0:00:08]} 93. Qf6+ {[%emt 0:00:13]} Kg8 {[%emt 0:00:15]} 94. Qd8+ {[%emt 0:00:24]} Kg7 {[%emt 0:00:16]} 95. Qe7+ {[%emt 0:00:05]} Bf7 {[%emt 0:00:17]} 96. Nd6 {[%emt 0:00:22]} Qh2+ {[%emt 0:00:08]} 97. Kc3 {[%emt 0:00:10]} 1-0